bitfinex/quotes_BTCUSD_20240828
["timestamp","ask_amount","ask_price","bid_price","bid_amount"]
[1724809530538,0.001,59232.0,59230.0,0.26846077]
[1724809530749,0.001,59232.0,59231.0,0.023]
[1724809530954,0.001,59232.0,59231.0,0.19146077]
[1724809531249,0.002,59232.0,59231.0,0.29483701]
[1724809531525,0.001,59232.0,59231.0,0.29483701]
[1724809531931,0.0954,59240.0,59231.0,0.29483701]
[1724809532112,0.1202,59236.0,59232.0,1.6]
[1724809532241,0.1202,59236.0,59233.0,0.023]
[1724809532847,0.00337524,59235.0,59234.0,1.5]
[1724809533077,0.1202,59236.0,59234.0,1.5]
[1724809533477,0.00337524,59239.0,59234.0,1.5]
[1724809533890,0.001,59236.0,59234.0,1.5]
[1724809534121,0.2174,59235.0,59234.0,1.505]
[1724809534514,0.2164,59235.0,59234.0,0.001]
[1724809534716,0.21977524,59235.0,59234.0,0.001]
[1724809534949,0.21977524,59235.0,59234.0,0.005]
[1724809535340,0.21977524,59235.0,59234.0,0.005817]
[1724809536262,0.21977524,59235.0,59234.0,0.001817]
[1724809536462,0.0974,59235.0,59234.0,0.16927777]
[1724809536659,0.0994,59235.0,59234.0,0.17527777]
[1724809536871,0.0994,59235.0,59234.0,0.19827777]
[1724809537101,0.0974,59235.0,59234.0,0.19227777]
[1724809537418,0.0974,59235.0,59234.0,0.19627777]
[1724809537617,0.0974,59235.0,59234.0,0.19527777]
[1724809537826,0.0974,59235.0,59234.0,0.19227777]
[1724809538063,0.0984,59235.0,59234.0,0.19327777]
[1724809538463,0.0994,59235.0,59234.0,0.19827777]
[1724809540000,0.0994,59235.0,59234.0,1.529817]
[1724809540001,0.2173,59235.0,59234.0,1.529817]
[1724809540817,0.2173,59235.0,59234.0,0.006817]
[1724809541601,0.2163,59235.0,59234.0,0.001817]
[1724809542894,0.2173,59235.0,59234.0,0.006817]
[1724809543118,0.2173,59235.0,59234.0,0.005817]
[1724809543325,0.2163,59235.0,59234.0,0.005817]
[1724809543521,0.2153,59235.0,59234.0,0.001817]
[1724809543721,0.2153,59235.0,59234.0,0.000817]
[1724809544374,0.2163,59235.0,59234.0,0.005817]
[1724809545124,0.0984,59235.0,59234.0,0.005817]
[1724809547197,0.001,59235.0,59234.0,0.17427777]
[1724809547399,0.001,59235.0,59234.0,1.69727777]
[1724809548269,0.2122,59235.0,59234.0,0.005817]
[1724809548606,0.001,59235.0,59234.0,0.17427777]
[1724809548715,0.001,59235.0,59234.0,1.67427777]
[1724809549640,0.001,59235.0,59234.0,1.69727777]
[1724809555522,0.001,59235.0,59234.0,1.79727777]
[1724809555933,0.001,59235.0,59234.0,1.91197777]
[1724809556748,0.00089871,59239.0,59238.0,0.005]
[1724809556921,0.00089871,59239.0,59238.0,0.49366599]
[1724809557126,0.00089871,59239.0,59238.0,0.59366599]
[1724809557325,0.00089871,59239.0,59238.0,0.58866599]
[1724809558408,0.00189871,59239.0,59238.0,0.58966599]
[1724809559049,0.00189871,59239.0,59238.0,0.124]
[1724809559050,0.09389871,59239.0,59238.0,0.124]
[1724809559286,0.09389871,59239.0,59238.0,0.024]
[1724809559287,0.21189871,59239.0,59238.0,0.024]
[1724809559485,0.21189871,59239.0,59238.0,0.001]
[1724809559615,0.21189871,59239.0,59238.0,1.524]
[1724809559831,0.21289871,59239.0,59238.0,1.53]
[1724809560037,0.21289871,59239.0,59238.0,1.63]
[1724809561346,0.21289871,59239.0,59238.0,0.007]
[1724809563167,0.21627395,59239.0,59238.0,0.007]
[1724809563826,0.21527395,59239.0,59238.0,0.001]
[1724809564037,0.22477395,59239.0,59238.0,0.004]
[1724809564209,0.22477395,59239.0,59238.0,0.009]
[1724809564533,0.22477395,59239.0,59238.0,0.004]
[1724809565242,0.22139871,59239.0,59238.0,0.004]
[1724809565453,0.22477395,59239.0,59238.0,0.004]
[1724809565607,0.22239871,59239.0,59238.0,0.004]
[1724809566025,0.22239871,59239.0,59234.0,1.500817]
[1724809566234,0.0992,59237.0,59234.0,1.500817]
[1724809566428,0.2283,59237.0,59234.0,1.500817]
[1724809566609,0.00337524,59236.0,59234.0,1.500817]
[1724809566809,0.00337524,59236.0,59235.0,1.5]
[1724809568017,0.13247524,59236.0,59235.0,1.503]
[1724809568234,0.13247524,59236.0,59235.0,0.003]
[1724809568456,0.13247524,59236.0,59235.0,0.007]
[1724809568676,0.23167524,59236.0,59235.0,0.007]
[1724809569195,0.90658401,59236.0,59235.0,0.007]
[1724809569403,0.506457,59235.0,59234.0,1.500817]
[1724809569600,0.89261777,59235.0,59234.0,1.500817]
[1724809569805,0.2177,59235.0,59234.0,1.500817]
[1724809570829,0.2177,59235.0,59234.0,1.502817]
[1724809571032,0.2177,59235.0,59234.0,1.500817]
[1724809572833,0.2177,59235.0,59234.0,1.502817]
[1724809574157,0.2177,59235.0,59234.0,3.002817]
[1724809574292,0.2177,59235.0,59234.0,1.502817]
[1724809574696,0.22207524,59235.0,59234.0,1.502817]
[1724809575578,0.22207524,59235.0,59234.0,1.500817]
[1724809576000,0.22307524,59235.0,59234.0,1.500817]
[1724809576434,0.22107524,59235.0,59234.0,1.500817]
[1724809576676,0.55935501,59235.0,59234.0,1.500817]
[1724809576899,1.23663101,59235.0,59234.0,1.500817]
[1724809577292,1.23763101,59235.0,59234.0,1.500817]
[1724809580078,1.57526901,59235.0,59234.0,1.396917]
[1724809581169,1.57326901,59235.0,59234.0,1.396917]
[1724809581413,1.58226901,59235.0,59234.0,1.396917]
[1724809581633,1.24463101,59235.0,59234.0,1.396917]
[1724809582095,1.24263101,59235.0,59234.0,1.396917]
[1724809582334,1.25163101,59235.0,59234.0,1.396917]
[1724809582535,1.24263101,59235.0,59234.0,1.396917]
[1724809582744,1.23363101,59235.0,59234.0,1.396917]
[1724809583171,1.24463101,59235.0,59234.0,1.396917]
[1724809583611,1.25463101,59235.0,59234.0,1.396917]
[1724809583814,1.28107919,59235.0,59234.0,1.397734]
[1724809587460,1.25463101,59235.0,59234.0,1.397734]
[1724809590247,0.24207524,59235.0,59234.0,1.397734]
[1724809590474,0.2387,59235.0,59234.0,1.397734]
[1724809591410,0.021,59235.0,59234.0,1.397734]
[1724809592257,0.011,59235.0,59234.0,1.397734]
[1724809592486,0.015,59235.0,59234.0,1.397734]
[1724809592685,1.13753101,59235.0,59234.0,1.397734]
[1724809592914,1.23223101,59235.0,59234.0,1.397734]
[1724809593168,1.23723101,59235.0,59234.0,1.397734]
[1724809593581,1.57486901,59235.0,59234.0,1.397734]
[1724809594322,0.22467524,59235.0,59234.0,1.397734]
[1724809595160,0.22557395,59235.0,59234.0,1.397734]
[1724809595366,0.22219871,59235.0,59234.0,1.397734]
[1724809595779,0.00989871,59235.0,59234.0,1.397734]
[1724809595956,0.00989871,59235.0,59234.0,1.507534]
[1724809596406,0.00989871,59235.0,59234.0,1.80473922]
[1724809596628,0.00989871,59235.0,59234.0,2.17529999]
[1724809596832,0.00989871,59235.0,59234.0,3.67529999]
[1724809597435,0.00589871,59235.0,59234.0,3.67529999]
[1724809597622,0.00089871,59235.0,59234.0,3.67529999]
[1724809598015,0.00189871,59235.0,59234.0,3.68029999]
[1724809598420,0.00089871,59235.0,59234.0,3.67529999]
[1724809599068,0.00189871,59235.0,59234.0,3.68029999]
[1724809599277,0.00289871,59235.0,59234.0,3.68229999]
[1724809599435,0.00189871,59235.0,59234.0,3.67729999]
[1724809599623,0.00089871,59235.0,59234.0,3.67529999]
[1724809599805,0.00189871,59235.0,59234.0,3.67729999]
[1724809600398,0.00189871,59235.0,59234.0,3.67529999]
[1724809600611,0.0026747,59235.0,59234.0,3.67729999]
[1724809601030,0.0026747,59235.0,59234.0,3.68229999]
[1724809601232,0.0036747,59235.0,59234.0,3.68229999]
[1724809601589,0.0026747,59235.0,59234.0,3.67729999]
[1724809602107,0.0036747,59235.0,59234.0,3.68229999]
[1724809603331,0.0036747,59235.0,59234.0,2.18229999]
[1724809605203,0.00089871,59239.0,59238.0,0.25291]
[1724809605418,0.00089871,59253.0,59251.0,0.1098]
[1724809605624,0.00089871,59253.0,59252.0,0.19146077]
[1724809605792,0.00089871,59253.0,59252.0,0.1948358]
[1724809606138,0.00089871,59253.0,59252.0,1.6948358]
[1724809606540,0.00189871,59253.0,59252.0,1.6948358]
[1724809606794,0.00089871,59253.0,59252.0,1.70487625]
[1724809607250,0.00089871,59253.0,59252.0,2.35857929]
[1724809607251,0.00189871,59253.0,59252.0,2.35857929]
[1724809607420,0.00189871,59253.0,59252.0,2.62396076]
[1724809607568,0.00189871,59253.0,59252.0,2.57337929]
[1724809607786,0.00189871,59253.0,59252.0,2.56500426]
[1724809607992,0.00189871,59253.0,59252.0,2.61557123]
[1724809608206,0.00289871,59253.0,59252.0,2.62657123]
[1724809608540,0.00189871,59253.0,59252.0,2.57400426]
[1724809608746,0.00089871,59253.0,59252.0,2.56300426]
[1724809608934,0.00089871,59253.0,59252.0,2.59100426]
[1724809608935,0.00289871,59253.0,59252.0,2.59100426]
[1724809609158,0.00289871,59253.0,59252.0,2.57700426]
[1724809609506,0.00189871,59253.0,59252.0,2.56300426]
[1724809609699,0.00289871,59253.0,59252.0,2.57500426]
[1724809609904,0.00389871,59253.0,59252.0,2.58900426]
[1724809610354,0.00189871,59253.0,59252.0,2.57500426]
[1724809610557,0.00289871,59253.0,59252.0,2.58900426]
[1724809611180,0.00189871,59253.0,59252.0,2.65287647]
[1724809612035,0.00089871,59253.0,59252.0,2.65287647]
[1724809612207,0.00189871,59253.0,59252.0,3.04125498]
[1724809612408,0.00189871,59253.0,59252.0,2.37555194]
[1724809612583,0.00189871,59253.0,59252.0,2.36155194]
[1724809612791,0.00289871,59253.0,59252.0,2.38855194]
[1724809613396,0.00289871,59253.0,59252.0,2.31267973]
[1724809613685,0.00089871,59253.0,59252.0,2.39984267]
[1724809613893,0.00189871,59253.0,59252.0,2.31267973]
[1724809614105,0.00189871,59253.0,59252.0,2.41384267]
[1724809614307,0.00189871,59253.0,59252.0,2.40584267]
[1724809614529,0.00189871,59253.0,59252.0,2.30467973]
[1724809614743,0.00289871,59253.0,59252.0,2.20387973]
[1724809614943,0.00289871,59253.0,59252.0,0.60358761]
[1724809615142,0.00189871,59253.0,59252.0,0.58958761]
[1724809615407,0.00189871,59253.0,59252.0,0.47437851]
[1724809615408,0.00089871,59253.0,59252.0,0.47437851]
[1724809615744,0.00189871,59253.0,59252.0,0.48837851]
[1724809615972,0.00189871,59253.0,59252.0,0.50237851]
[1724809616427,0.00189871,59253.0,59252.0,0.52537851]
[1724809617360,0.00189871,59253.0,59252.0,0.62658055]
[1724809618970,0.00189871,59253.0,59252.0,0.63927851]
[1724809619866,0.00189871,59253.0,59252.0,0.74047157]
[1724809620109,0.00189871,59253.0,59252.0,0.62657157]
[1724809620557,0.00189871,59253.0,59252.0,0.52537851]
[1724809621225,0.12139871,59253.0,59252.0,2.02538559]
[1724809621452,0.12139871,59253.0,59252.0,2.10127131]
[1724809621930,0.00189871,59253.0,59252.0,2.10127131]
[1724809622164,0.00189871,59253.0,59252.0,2.21517131]
[1724809622406,0.00189871,59253.0,59252.0,2.10127131]
[1724809623100,0.00189871,59253.0,59252.0,0.57827131]
[1724809623101,0.22769871,59253.0,59252.0,0.57827131]
[1724809623321,0.22769871,59253.0,59252.0,0.028]
[1724809623780,0.56830172,59253.0,59252.0,0.028]
[1724809623991,0.90583672,59253.0,59252.0,0.028]
[1724809624255,0.168782,59248.0,59229.0,0.50622486]
[1724809624480,0.17183601,59247.0,59229.0,0.50622486]
[1724809624687,0.1288,59245.0,59229.0,0.000817]
[1724809624893,0.0967,59246.0,59229.0,0.000817]
[1724809624894,0.1288,59243.0,59229.0,0.000817]
[1724809625105,0.1288,59243.0,59234.0,1.56619477]
[1724809625543,0.1288,59243.0,59235.0,0.17183684]
[1724809625757,0.0967,59246.0,59235.0,0.17183684]
[1724809626133,0.0967,59246.0,59239.0,0.29720522]
[1724809626366,0.0967,59246.0,59240.0,0.023]
[1724809627369,0.1286,59252.0,59241.0,0.16846077]
[1724809627569,0.1286,59252.0,59243.0,0.098]
[1724809627885,0.1286,59252.0,59244.0,0.19146077]
[1724809628329,0.1286,59252.0,59244.0,0.19483631]
[1724809628696,0.1286,59252.0,59244.0,0.19146077]
[1724809628923,0.001,59246.0,59245.0,0.00337551]
[1724809629084,0.1286,59252.0,59245.0,0.023]
[1724809629304,0.00337524,59251.0,59244.0,0.023]
[1724809630705,0.001,59246.0,59239.0,0.023817]
[1724809630910,0.001,59246.0,59245.0,0.005]
[1724809630911,0.1067,59246.0,59245.0,0.005]
[1724809631525,0.2268,59246.0,59239.0,0.000817]
[1724809631733,0.00337524,59245.0,59239.0,0.000817]
[1724809632287,0.00337524,59245.0,59244.0,0.001]
[1724809632494,0.29253601,59245.0,59239.0,0.000817]
[1724809632695,0.12047605,59243.0,59239.0,0.000817]
[1724809632894,0.1016,59241.0,59239.0,0.000817]
[1724809633097,0.00337524,59240.0,59239.0,0.000817]
[1724809633321,0.34064001,59240.0,59239.0,0.000817]
[1724809633568,0.77984901,59240.0,59239.0,0.000817]
[1724809633772,1.45506701,59240.0,59239.0,0.000817]
[1724809634180,1.11745801,59240.0,59239.0,0.000817]
[1724809634616,0.77984901,59240.0,59239.0,0.000817]
[1724809635021,0.80629855,59240.0,59239.0,0.001817]
[1724809635223,1.15490755,59240.0,59239.0,0.001817]
[1724809635440,1.49251655,59240.0,59239.0,0.000817]
[1724809635636,1.49251655,59240.0,59229.0,0.000817]
[1724809635637,0.946695,59235.0,59229.0,0.000817]
[1724809635837,1.58129377,59235.0,59229.0,0.000817]
[1724809636107,1.24365577,59235.0,59229.0,0.000817]
[1724809636833,0.90601777,59235.0,59229.0,0.000817]
[1724809637035,1.24365577,59235.0,59229.0,0.000817]
[1724809637605,1.25565577,59235.0,59229.0,0.000817]
[1724809638159,1.24365577,59235.0,59229.0,0.000817]
[1724809638389,1.25565577,59235.0,59229.0,0.000817]
[1724809638589,1.26765577,59235.0,59229.0,0.000817]
[1724809638992,1.25565577,59235.0,59229.0,0.000817]
[1724809639198,1.26765577,59235.0,59229.0,0.000817]
[1724809639367,1.25565577,59235.0,59229.0,0.000817]
[1724809639716,1.26765577,59235.0,59229.0,0.000817]
[1724809640136,0.2431,59235.0,59229.0,0.000817]
[1724809640568,0.24647524,59235.0,59229.0,0.000817]
[1724809641713,0.41529424,59235.0,59229.0,0.000817]
[1724809641942,0.2551,59235.0,59229.0,0.000817]
[1724809643153,0.2431,59235.0,59229.0,0.000817]
[1724809643813,0.2311,59235.0,59229.0,0.000817]
[1724809644020,0.2441,59235.0,59229.0,0.000817]
[1724809644586,0.2431,59235.0,59229.0,0.000817]
[1724809644836,0.411919,59235.0,59229.0,0.000817]
[1724809645085,1.079195,59235.0,59229.0,0.000817]
[1724809645303,1.082195,59235.0,59229.0,0.000817]
[1724809646182,1.24765577,59235.0,59229.0,0.000817]
[1724809646409,1.59829377,59235.0,59229.0,0.000817]
[1724809646615,1.93593177,59235.0,59229.0,0.000817]
[1724809646843,1.93193177,59235.0,59229.0,0.000817]
[1724809647321,1.93993177,59235.0,59229.0,0.000817]
[1724809647525,1.93493177,59235.0,59229.0,0.000817]
[1724809647694,1.92693177,59235.0,59229.0,0.000817]
[1724809647903,1.92393177,59235.0,59229.0,0.000817]
[1724809648133,1.93793177,59235.0,59229.0,0.000817]
[1724809648364,1.95193177,59235.0,59229.0,0.000817]
[1724809648774,1.92393177,59235.0,59229.0,0.000817]
[1724809649204,1.93793177,59235.0,59229.0,0.000817]
[1724809650242,1.60929377,59235.0,59229.0,0.000817]
[1724809650659,1.29810803,59235.0,59229.0,0.000817]
[1724809651068,1.28410803,59235.0,59229.0,0.000817]
[1724809652200,1.29810803,59235.0,59229.0,0.000817]
[1724809653084,0.96047003,59235.0,59229.0,0.000817]
[1724809653912,1.29810803,59235.0,59229.0,0.000817]
[1724809654107,1.28410803,59235.0,59229.0,0.000817]
[1724809654313,1.28310803,59235.0,59229.0,0.000817]
[1724809654564,0.43937126,59235.0,59229.0,0.000817]
[1724809654714,0.195819,59235.0,59229.0,0.000817]
[1724809655090,0.027,59235.0,59229.0,0.000817]
[1724809655726,0.027,59235.0,59234.0,3.129234]
[1724809656548,0.013,59235.0,59234.0,1.629234]
[1724809656753,0.016,59235.0,59234.0,1.79769477]
[1724809656964,0.016,59235.0,59234.0,1.629234]
[1724809657376,0.013,59235.0,59234.0,1.629234]
[1724809657621,0.00089871,59239.0,59234.0,1.631234]
[1724809657823,0.00089871,59239.0,59235.0,0.023]
[1724809658208,0.00089871,59239.0,59235.0,1.523]
[1724809658813,0.00089871,59239.0,59235.0,0.023]
[1724809659252,0.00189871,59239.0,59236.0,0.28206077]
[1724809659467,0.00189871,59239.0,59237.0,0.0263758]
[1724809659666,0.00189871,59239.0,59238.0,0.16846077]
[1724809659920,0.00189871,59239.0,59237.0,0.023]
[1724809660342,0.00389871,59239.0,59237.0,0.023]
[1724809660660,0.00289871,59239.0,59238.0,0.16846077]
[1724809660867,0.00089871,59239.0,59238.0,0.19146077]
[1724809661089,0.00289871,59239.0,59238.0,0.19146077]
[1724809661718,0.00189871,59239.0,59238.0,0.19146077]
[1724809661923,0.00189871,59239.0,59238.0,0.19446077]
[1724809662159,0.00289871,59239.0,59238.0,1.69546077]
[1724809662627,0.00289871,59239.0,59238.0,1.79546077]
[1724809662835,0.00289871,59239.0,59238.0,1.80524765]
[1724809665172,0.00289871,59239.0,59238.0,0.30524765]
[1724809665501,0.00289871,59239.0,59238.0,0.30862345]
[1724809665623,0.00289871,59239.0,59238.0,1.80862345]
[1724809666632,0.00289871,59239.0,59238.0,1.79883657]
[1724809668444,0.00289871,59239.0,59238.0,0.127]
[1724809668643,0.00289871,59239.0,59238.0,0.027]
[1724809670215,0.00289871,59239.0,59238.0,0.31243675]
[1724809670407,0.00289871,59239.0,59238.0,0.42053123]
[1724809670611,0.00089871,59253.0,59245.0,0.005]
[1724809670924,0.00089871,59253.0,59252.0,0.40949604]
[1724809671093,0.00089871,59253.0,59252.0,0.60095681]
[1724809671535,0.00089871,59253.0,59252.0,0.80515681]
[1724809671740,0.00289871,59253.0,59252.0,0.80515681]
[1724809672148,0.00089871,59253.0,59252.0,2.30515681]
[1724809672361,0.00089871,59253.0,59252.0,2.30615681]
[1724809672572,0.00189871,59253.0,59252.0,2.30615681]
[1724809672986,0.00589871,59253.0,59252.0,2.30615681]
[1724809673568,0.00189871,59253.0,59252.0,2.30615681]
[1724809673765,0.00189871,59253.0,59252.0,2.31315681]
[1724809674110,0.00289871,59253.0,59252.0,2.33229405]
[1724809674312,0.00189871,59253.0,59252.0,2.32329405]
[1724809674521,0.00089871,59253.0,59252.0,2.31529405]
[1724809674722,0.00289871,59253.0,59252.0,2.33829405]
[1724809674939,0.00289871,59253.0,59252.0,2.32629405]
[1724809675288,0.00389871,59253.0,59252.0,2.34029405]
[1724809675488,0.00189871,59253.0,59252.0,2.32629405]
[1724809676297,0.00089871,59253.0,59252.0,2.31529405]
[1724809676483,0.00189871,59253.0,59252.0,2.32829405]
[1724809677057,0.00289871,59253.0,59252.0,2.34029405]
[1724809680574,0.00289871,59253.0,59252.0,2.33529405]
[1724809680818,0.00289871,59253.0,59252.0,0.62249405]
[1724809681061,0.00289871,59253.0,59252.0,0.59949405]
[1724809681728,0.00289871,59253.0,59252.0,0.71919405]
[1724809681934,0.0008976,59272.0,59258.0,0.1147]
[1724809682154,0.50540786,59266.0,59259.0,0.26846077]
[1724809682322,0.1231,59271.0,59259.0,0.27183512]
[1724809682695,0.1231,59271.0,59260.0,0.023]
[1724809682908,0.1231,59271.0,59261.0,0.16846077]
[1724809683258,0.1231,59271.0,59262.0,0.123]
[1724809683463,0.1231,59271.0,59263.0,0.16846077]
[1724809683620,0.1231,59271.0,59264.0,0.023]
[1724809683816,0.1231,59271.0,59264.0,0.19146077]
[1724809684266,0.1271,59271.0,59264.0,0.19146077]
[1724809684745,0.1311,59271.0,59264.0,0.19146077]
[1724809685263,0.1351,59271.0,59264.0,0.19146077]
[1724809686220,0.1311,59271.0,59264.0,0.19146077]
[1724809686646,0.1311,59271.0,59262.0,0.1]
[1724809686647,0.096,59270.0,59262.0,0.1]
[1724809686846,0.1237,59268.0,59259.0,0.1]
[1724809687219,0.1237,59265.0,59255.0,0.1]
[1724809687763,0.12707524,59265.0,59255.0,0.1]
[1724809688176,0.1237,59265.0,59255.0,0.1]
[1724809688383,0.1237,59265.0,59258.0,0.29589604]
[1724809688590,0.1237,59265.0,59259.0,0.1]
[1724809688820,0.1237,59265.0,59260.0,0.023]
[1724809690392,0.1237,59265.0,59260.0,0.025]
[1724809691041,0.1237,59265.0,59260.0,0.028]
[1724809691848,0.1237,59265.0,59260.0,0.005]
[1724809692047,0.0966,59263.0,59260.0,0.005]
[1724809692224,0.1242,59262.0,59260.0,0.005]
[1724809692425,0.0966,59261.0,59260.0,0.005]
[1724809692656,0.22417524,59261.0,59260.0,0.005]
[1724809692849,0.22417524,59261.0,59260.0,0.003]
[1724809693266,0.22417524,59261.0,59260.0,0.007]
[1724809693431,0.22417524,59261.0,59260.0,0.004]
[1724809693612,0.2208,59260.0,59252.0,0.000817]
[1724809693846,0.2208,59258.0,59252.0,0.000817]
[1724809694041,0.001,59263.0,59252.0,0.000817]
[1724809694042,0.1242,59255.0,59252.0,0.000817]
[1724809694912,0.1242,59255.0,59252.0,0.001817]
[1724809695082,0.1242,59255.0,59252.0,0.000817]
[1724809696582,0.1242,59255.0,59252.0,0.009817]
[1724809696583,0.1252,59255.0,59252.0,0.009817]
[1724809696788,0.1252,59255.0,59252.0,0.000817]
[1724809697202,0.1252,59255.0,59252.0,0.007817]
[1724809697428,0.1242,59255.0,59252.0,0.007817]
[1724809697664,0.1242,59255.0,59253.0,0.023]
[1724809697886,0.1252,59255.0,59253.0,0.023]
[1724809698279,0.1262,59255.0,59253.0,0.023]
[1724809699271,0.1252,59255.0,59253.0,0.023]
[1724809699473,0.1252,59255.0,59253.0,0.031]
[1724809699669,0.1252,59255.0,59253.0,0.04]
[1724809699871,0.1262,59255.0,59253.0,0.04]
[1724809700899,0.1262,59255.0,59253.0,0.017]
[1724809701719,0.12709871,59255.0,59253.0,0.017]
[1724809702557,0.12509871,59255.0,59252.0,0.000817]
[1724809702937,0.12709871,59255.0,59253.0,0.013]
[1724809703352,0.12609871,59255.0,59253.0,0.006]
[1724809703684,0.12509871,59255.0,59252.0,0.000817]
[1724809703893,0.12509871,59255.0,59252.0,0.003817]
[1724809704204,0.12509871,59255.0,59253.0,0.025]
[1724809704622,0.12509871,59255.0,59253.0,0.005]
[1724809705727,0.12509871,59255.0,59253.0,0.003]
[1724809705928,0.12509871,59255.0,59252.0,0.003817]
[1724809706133,0.12509871,59255.0,59253.0,0.023]
[1724809706996,0.12509871,59255.0,59253.0,0.006]
[1724809708237,0.39733924,59254.0,59253.0,0.006]
[1724809708433,1.24085801,59254.0,59253.0,0.006]
[1724809709064,0.2252,59254.0,59252.0,0.000817]
[1724809709481,0.2252,59254.0,59253.0,0.008]
[1724809709888,0.2252,59254.0,59253.0,0.004]
[1724809710355,0.00089871,59255.0,59253.0,0.004]
[1724809712103,0.00089871,59255.0,59252.0,0.000817]
[1724809712307,0.00089871,59255.0,59253.0,0.004]
[1724809712566,0.00089871,59255.0,59253.0,0.007]
[1724809712717,0.00089871,59255.0,59253.0,0.003]
[1724809713136,0.00089871,59255.0,59253.0,0.005]
[1724809714656,0.00089871,59255.0,59254.0,0.67925681]
[1724809714885,0.00089871,59255.0,59254.0,0.50636077]
[1724809715296,0.00089871,59255.0,59254.0,2.00636077]
[1724809715533,0.00089871,59255.0,59254.0,2.456345]
[1724809716166,0.00289871,59255.0,59254.0,2.49656175]
[1724809716612,0.00189871,59255.0,59254.0,2.48856175]
[1724809716779,0.00189871,59255.0,59254.0,2.49556175]
[1724809716982,0.00289871,59255.0,59254.0,2.50856175]
[1724809717190,0.00289871,59255.0,59254.0,2.40769475]
[1724809717393,0.00289871,59255.0,59254.0,2.48335318]
[1724809717998,0.00289871,59255.0,59254.0,2.49355131]
[1724809718314,0.50630546,59272.0,59269.0,0.29589604]
[1724809718315,0.50540786,59271.0,59269.0,0.29589604]
[1724809718537,0.50540786,59271.0,59270.0,0.19146077]
[1724809718742,0.0008976,59272.0,59270.0,0.19146077]
[1724809718895,0.0008976,59272.0,59271.0,0.00337381]
[1724809719115,0.0008976,59272.0,59271.0,0.19483458]
[1724809720089,0.0018976,59272.0,59271.0,0.20483458]
[1724809720304,0.0018976,59272.0,59271.0,0.32393458]
[1724809720531,0.0028976,59272.0,59271.0,0.43493458]
[1724809720810,0.0028976,59272.0,59271.0,1.38498244]
[1724809721015,0.0028976,59272.0,59271.0,1.04754944]
[1724809721217,0.0028976,59272.0,59271.0,1.09796564]
[1724809721477,0.0028976,59272.0,59271.0,1.42176016]
[1724809721615,0.00937601,59279.0,59278.0,0.41499604]
[1724809721798,0.00937601,59279.0,59278.0,0.70645681]
[1724809722159,0.00937601,59279.0,59278.0,2.20645681]
[1724809722799,0.00937601,59279.0,59278.0,2.22045681]
[1724809723318,0.00937601,59279.0,59278.0,2.23445681]
[1724809723664,0.00937601,59279.0,59278.0,2.11535681]
[1724809723867,0.00937601,59279.0,59278.0,0.29646077]
[1724809724833,0.00937601,59279.0,59278.0,0.30651695]
[1724809725425,0.00937601,59279.0,59278.0,1.80651695]
[1724809725640,0.00937601,59279.0,59278.0,2.12541299]
[1724809725978,0.50540786,59309.0,59293.0,0.005]
[1724809726209,0.168638,59299.0,59293.0,0.005]
[1724809726355,0.16846077,59299.0,59293.0,0.005]
[1724809726535,0.337229,59307.0,59298.0,0.005]
[1724809726736,0.33707777,59306.0,59298.0,0.005]
[1724809726954,0.16846077,59306.0,59298.0,0.005]
[1724809727768,0.33707777,59306.0,59298.0,0.005]
[1724809727972,0.33707777,59306.0,59298.0,0.006]
[1724809728579,0.16862,59305.0,59298.0,0.006]
[1724809728787,0.33708077,59305.0,59298.0,0.001]
[1724809728986,0.2267,59304.0,59298.0,0.001]
[1724809729221,0.2267,59303.0,59298.0,0.002]
[1724809729342,0.2267,59304.0,59298.0,0.007]
[1724809729558,0.0967,59301.0,59298.0,0.001]
[1724809729762,0.0967,59299.0,59296.0,0.005]
[1724809729980,0.0967,59297.0,59293.0,0.005]
[1724809730189,0.13,59296.0,59293.0,0.005]
[1724809730660,0.13,59296.0,59295.0,0.005]
[1724809731644,0.13,59296.0,59293.0,0.005]
[1724809732800,0.168664,59290.0,59285.0,0.005]
[1724809733003,0.0989,59290.0,59285.0,0.005]
[1724809733420,0.0989,59290.0,59287.0,0.005]
[1724809734379,0.1306,59291.0,59290.0,0.005]
[1724809736832,0.1854,59294.0,59293.0,0.005]
[1724809737715,0.1,59308.0,59298.0,0.005]
[1724809737716,0.0865,59299.0,59298.0,0.005]
[1724809741373,0.0865,59299.0,59297.0,0.005]
[1724809741584,0.0865,59299.0,59295.0,0.005]
[1724809741794,0.168644,59297.0,59290.0,0.0058987]
[1724809742017,0.0705,59297.0,59293.0,0.005]
[1724809742228,0.0705,59296.0,59291.0,0.005]
[1724809742429,0.0915,59295.0,59291.0,0.005]
[1724809742831,0.0915,59295.0,59290.0,0.0008987]
[1724809743039,0.33711177,59294.0,59290.0,0.0008987]
[1724809743259,0.1608,59292.0,59290.0,0.0008987]
[1724809743493,0.16846077,59294.0,59290.0,0.0008987]
[1724809743494,0.83523877,59291.0,59290.0,0.0008987]
[1724809743899,0.49791977,59291.0,59290.0,0.0008987]
[1724809744100,0.32926077,59291.0,59290.0,0.0008987]
[1724809744761,0.83523877,59291.0,59290.0,0.0008987]
[1724809745197,0.49791977,59291.0,59290.0,0.0008987]
[1724809745375,0.32926077,59291.0,59290.0,0.0018987]
[1724809745969,0.32926077,59291.0,59290.0,0.0028987]
[1724809746178,0.32926077,59291.0,59290.0,0.0018987]
[1724809746524,0.32926077,59291.0,59290.0,0.0028987]
[1724809746727,0.49791977,59291.0,59290.0,0.0028987]
[1724809747626,0.32926077,59291.0,59290.0,0.0028987]
[1724809749065,0.24198,59291.0,59290.0,0.0028987]
[1724809749271,0.24198,59291.0,59290.0,0.0078987]
[1724809749272,0.08118,59291.0,59290.0,0.0078987]
[1724809750533,0.08118,59291.0,59290.0,0.0068987]
[1724809750789,0.08118,59291.0,59290.0,0.0078987]
[1724809751510,0.08118,59291.0,59290.0,0.0068987]
[1724809751730,0.08118,59291.0,59290.0,0.0078987]
[1724809751944,0.08118,59291.0,59290.0,0.0068987]
[1724809752377,0.08118,59291.0,59290.0,0.0058987]